[Event "*** Titled Tuesday Blitz"]
[Site "Chess.com"]
[Date "2018.06.05"]
[Round "1"]
[White "GMSrinath"]
[Black "nOcHeaTiNgKiD"]
[Result "1-0"]
[WhiteElo "2661"]
[BlackElo "2335"]
[TimeControl "180+2"]
[EndTime "13:01:43 PDT"]
[Termination "GMSrinath won by resignation"]

1. e4 {[%clk 0:02:58.5]} 1... e5 {[%clk 0:02:59.6]} 2. Nf3 {[%clk 0:02:59.2]}
2... Nf6 {[%clk 0:03:00.4]} 3. Nxe5 {[%clk 0:02:56.1]} 3... d6 {[%clk
0:03:01.3]} 4. Nc4 {[%clk 0:02:57.1]} 4... Nxe4 {[%clk 0:03:01.7]} 5. d4 {[%clk
0:02:58.6]} 5... Be7 {[%clk 0:02:52.3]} 6. Bd3 {[%clk 0:02:58.8]} 6... d5 {[%clk
0:02:51.3]} 7. Ne3 {[%clk 0:02:58.6]} 7... O-O {[%clk 0:02:49.3]} 8. O-O {[%clk
0:02:59.1]} 8... Nc6 {[%clk 0:02:43.5]} 9. c3 {[%clk 0:02:59.7]} 9... Be6 {[%clk
0:02:23]} 10. Bxe4 {[%clk 0:02:58]} 10... dxe4 {[%clk 0:02:11.9]} 11. d5 {[%clk
0:02:59.9]} 1-0

[Event "*** Titled Tuesday Blitz"]
[Site "Chess.com"]
[Date "2018.06.05"]
[Round "1"]
[White "Muracle"]
[Black "tteshan"]
[Result "1-0"]
[WhiteElo "2439"]
[BlackElo "1974"]
[TimeControl "180+2"]
[EndTime "13:02:22 PDT"]
[Termination "Muracle won by resignation"]

1. Nf3 {[%clk 0:03:01.4]} 1... c5 {[%clk 0:02:59.8]} 2. g3 {[%clk 0:03:02.8]}
2... d5 {[%clk 0:02:59.2]} 3. Bg2 {[%clk 0:03:04.7]} 3... Nc6 {[%clk 0:02:58.1]}
4. d4 {[%clk 0:03:05.9]} 4... cxd4 {[%clk 0:02:58.2]} 5. Nxd4 {[%clk 0:03:06]}
5... Nf6 {[%clk 0:02:59.2]} 6. O-O {[%clk 0:03:06.3]} 6... e6 {[%clk 0:02:58.8]}
7. c4 {[%clk 0:03:06]} 7... Bc5 {[%clk 0:02:51.4]} 8. Nxc6 {[%clk 0:03:02.8]}
8... bxc6 {[%clk 0:02:51.4]} 9. cxd5 {[%clk 0:03:04.7]} 9... exd5 {[%clk
0:02:47.8]} 10. Qc2 {[%clk 0:03:05]} 10... Qe7 {[%clk 0:02:45.7]} 11. b4 {[%clk
0:03:02.1]} 11... Bd4 {[%clk 0:02:36.7]} 12. Qxc6+ {[%clk 0:03:02.2]} 12... Qd7
{[%clk 0:02:36]} 13. Qxa8 {[%clk 0:02:58.7]} 13... Bxa1 {[%clk 0:02:36.2]} 14.
Be3 {[%clk 0:02:59.1]} 14... Be5 {[%clk 0:02:30.4]} 15. Bc5 {[%clk 0:02:53.5]}
15... Bd6 {[%clk 0:02:25.4]} 16. Bxd6 {[%clk 0:02:53.4]} 16... Qxd6 {[%clk
0:02:16.8]} 17. Qxc8+ {[%clk 0:02:53.4]} 1-0

[Event "*** Titled Tuesday Blitz"]
[Site "Chess.com"]
[Date "2018.06.05"]
[Round "1"]
[White "fidetrainerNET"]
[Black "BlueWizzard"]
[Result "0-1"]
[WhiteElo "2140"]
[BlackElo "2484"]
[TimeControl "180+2"]
[EndTime "13:02:31 PDT"]
[Termination "BlueWizzard won by resignation"]

1. e4 {[%clk 0:03:01.9]} 1... d5 {[%clk 0:02:59.1]} 2. e5 {[%clk 0:03:00.2]}
2... c5 {[%clk 0:02:59.4]} 3. c4 {[%clk 0:03:02.1]} 3... Nc6 {[%clk 0:02:59.4]}
4. cxd5 {[%clk 0:03:01.8]} 4... Qxd5 {[%clk 0:02:59.9]} 5. f4 {[%clk 0:03:03.7]}
5... Bf5 {[%clk 0:02:59.3]} 6. Nc3 {[%clk 0:03:02.7]} 6... Qd7 {[%clk
0:02:59.8]} 7. Bb5 {[%clk 0:03:02.9]} 7... a6 {[%clk 0:03:00.4]} 8. Ba4 {[%clk
0:03:03.5]} 8... b5 {[%clk 0:02:59.5]} 9. Bc2 {[%clk 0:03:03.6]} 9... Bxc2
{[%clk 0:02:58]} 10. Qxc2 {[%clk 0:03:05.5]} 10... e6 {[%clk 0:02:54.4]} 11. Nf3
{[%clk 0:03:04.6]} 11... Nb4 {[%clk 0:02:55.1]} 12. Qe4 {[%clk 0:03:03.3]} 12...
Nd3+ {[%clk 0:02:55.9]} 13. Ke2 {[%clk 0:03:03.8]} 13... Rd8 {[%clk 0:02:56]}
14. b3 {[%clk 0:02:46]} 14... Nh6 {[%clk 0:02:55]} 15. h3 {[%clk 0:02:45.1]}
15... Nf5 {[%clk 0:02:55.1]} 16. Kd1 {[%clk 0:02:16.7]} 16... Nf2+ {[%clk
0:02:55.3]} 17. Ke1 {[%clk 0:02:14.1]} 17... Nxe4 {[%clk 0:02:55.5]} 18. Nxe4
{[%clk 0:02:16]} 18... Nd4 {[%clk 0:02:54]} 19. Nxd4 {[%clk 0:02:14]} 19... Qxd4
{[%clk 0:02:54]} 20. Nc3 {[%clk 0:02:12.8]} 20... b4 {[%clk 0:02:53]} 21. Ne2
{[%clk 0:02:12.6]} 21... Qxa1 {[%clk 0:02:53.3]} 0-1

[Event "*** Titled Tuesday Blitz"]
[Site "Chess.com"]
[Date "2018.06.05"]
[Round "1"]
[White "lionheart95"]
[Black "Rakhmanov_Aleksandr"]
[Result "0-1"]
[WhiteElo "2355"]
[BlackElo "2696"]
[TimeControl "180+2"]
[EndTime "13:02:42 PDT"]
[Termination "Rakhmanov_Aleksandr won by resignation"]

1. e4 {[%clk 0:02:56.5]} 1... c5 {[%clk 0:02:59.5]} 2. Nf3 {[%clk 0:02:56]} 2...
Nf6 {[%clk 0:03:00.9]} 3. Nc3 {[%clk 0:02:52.7]} 3... d5 {[%clk 0:03:01.5]} 4.
exd5 {[%clk 0:02:53.5]} 4... Nxd5 {[%clk 0:03:01.7]} 5. Bb5+ {[%clk 0:02:54.8]}
5... Bd7 {[%clk 0:03:02.3]} 6. Bxd7+ {[%clk 0:02:49.8]} 6... Qxd7 {[%clk
0:03:04.2]} 7. Nxd5 {[%clk 0:02:43.8]} 7... Qxd5 {[%clk 0:03:04.3]} 8. O-O
{[%clk 0:02:40.8]} 8... Nc6 {[%clk 0:03:05.3]} 9. d3 {[%clk 0:02:41.9]} 9... g6
{[%clk 0:03:04.8]} 10. Qe2 {[%clk 0:02:34.9]} 10... Bg7 {[%clk 0:03:05.2]} 11.
c3 {[%clk 0:02:35]} 11... O-O {[%clk 0:03:04.5]} 12. Be3 {[%clk 0:02:35.3]}
12... e5 {[%clk 0:02:58]} 13. Rfd1 {[%clk 0:02:33.2]} 13... Rfe8 {[%clk
0:02:56]} 14. Nd2 {[%clk 0:02:28.5]} 14... f5 {[%clk 0:02:47.4]} 15. Qf3 {[%clk
0:02:25.4]} 15... Rad8 {[%clk 0:02:32.1]} 16. Qxd5+ {[%clk 0:02:17.5]} 16...
Rxd5 {[%clk 0:02:34]} 17. Nb3 {[%clk 0:02:18.3]} 17... b6 {[%clk 0:02:32.7]} 18.
Rd2 {[%clk 0:02:19.5]} 18... f4 {[%clk 0:02:32.4]} 0-1

[Event "*** Titled Tuesday Blitz"]
[Site "Chess.com"]
[Date "2018.06.05"]
[Round "1"]
[White "Leo_C"]
[Black "aspired"]
[Result "0-1"]
[WhiteElo "2220"]
[BlackElo "2543"]
[TimeControl "180+2"]
[EndTime "13:02:48 PDT"]
[Termination "aspired won by resignation"]

1. d4 {[%clk 0:03:01.9]} 1... d5 {[%clk 0:02:59.3]} 2. c4 {[%clk 0:02:59.6]}
2... dxc4 {[%clk 0:03:00.2]} 3. e4 {[%clk 0:03:00]} 3... e5 {[%clk 0:02:58.6]}
4. d5 {[%clk 0:02:57.4]} 4... Bb4+ {[%clk 0:02:53.6]} 5. Bd2 {[%clk 0:02:57.5]}
5... Bxd2+ {[%clk 0:02:53.9]} 6. Nxd2 {[%clk 0:02:58]} 6... Nf6 {[%clk
0:02:53.9]} 7. Bxc4 {[%clk 0:02:57.9]} 7... O-O {[%clk 0:02:50]} 8. Ngf3 {[%clk
0:02:58.4]} 8... c6 {[%clk 0:02:50.9]} 9. dxc6 {[%clk 0:02:51.4]} 9... Nxc6
{[%clk 0:02:52.8]} 10. O-O {[%clk 0:02:52.4]} 10... Bg4 {[%clk 0:02:51]} 11. Qe2
{[%clk 0:02:45.5]} 11... Nd4 {[%clk 0:02:48.7]} 12. Qd3 {[%clk 0:02:44.6]} 12...
Nxf3+ {[%clk 0:02:41.3]} 13. Nxf3 {[%clk 0:02:43.9]} 13... Qxd3 {[%clk
0:02:40.3]} 14. Bxd3 {[%clk 0:02:44.8]} 14... Bxf3 {[%clk 0:02:40.2]} 15. gxf3
{[%clk 0:02:46.7]} 15... Rfd8 {[%clk 0:02:39.1]} 16. Rfd1 {[%clk 0:02:47]} 16...
Rac8 {[%clk 0:02:36.3]} 17. f4 {[%clk 0:02:45.7]} 17... exf4 {[%clk 0:02:28.1]}
18. Kg2 {[%clk 0:02:46.4]} 18... g5 {[%clk 0:02:25.3]} 19. Kf3 {[%clk
0:02:46.8]} 19... h6 {[%clk 0:02:25.6]} 20. h4 {[%clk 0:02:46.5]} 20... Nd7
{[%clk 0:02:24.4]} 21. hxg5 {[%clk 0:02:45.9]} 21... Ne5+ {[%clk 0:02:21.9]} 22.
Ke2 {[%clk 0:02:45]} 22... hxg5 {[%clk 0:02:20.4]} 23. f3 {[%clk 0:02:44.9]}
23... Nxd3 {[%clk 0:02:17.5]} 24. Rxd3 {[%clk 0:02:45.6]} 24... Rc2+ {[%clk
0:02:17.9]} 0-1

[Event "*** Titled Tuesday Blitz"]
[Site "Chess.com"]
[Date "2018.06.05"]
[Round "1"]
[White "Makalexa"]
[Black "Keaton87"]
[Result "0-1"]
[WhiteElo "2061"]
[BlackElo "2460"]
[TimeControl "180+2"]
[EndTime "13:02:51 PDT"]
[Termination "Keaton87 won by resignation"]

1. e4 {[%clk 0:02:48.6]} 1... c5 {[%clk 0:03:00.3]} 2. Nf3 {[%clk 0:02:49.8]}
2... d6 {[%clk 0:03:01.1]} 3. d4 {[%clk 0:02:51.7]} 3... Nf6 {[%clk 0:03:02.2]}
4. Nc3 {[%clk 0:02:50.6]} 4... cxd4 {[%clk 0:03:03.2]} 5. Nxd4 {[%clk
0:02:51.7]} 5... g6 {[%clk 0:03:04.8]} 6. Be3 {[%clk 0:02:52]} 6... Bg7 {[%clk
0:03:06.3]} 7. f3 {[%clk 0:02:52.5]} 7... O-O {[%clk 0:03:07.8]} 8. Qd2 {[%clk
0:02:54.2]} 8... Nc6 {[%clk 0:03:09.1]} 9. Bc4 {[%clk 0:02:45.6]} 9... Bd7
{[%clk 0:03:09.7]} 10. O-O-O {[%clk 0:02:45.5]} 10... Rc8 {[%clk 0:03:11.2]} 11.
Bb3 {[%clk 0:02:46.5]} 11... Nxd4 {[%clk 0:03:12.8]} 12. Bxd4 {[%clk 0:02:47]}
12... b5 {[%clk 0:03:14.4]} 13. Kb1 {[%clk 0:02:46.9]} 13... a5 {[%clk 0:03:15]}
14. a3 {[%clk 0:02:46.3]} 14... b4 {[%clk 0:03:15.6]} 15. axb4 {[%clk 0:02:47]}
15... axb4 {[%clk 0:03:17.5]} 16. Ba2 {[%clk 0:02:48]} 16... bxc3 {[%clk
0:03:17.6]} 17. Bxc3 {[%clk 0:02:38.8]} 17... Be6 {[%clk 0:03:18]} 18. Bxe6
{[%clk 0:02:32.8]} 18... fxe6 {[%clk 0:03:18.8]} 19. h4 {[%clk 0:02:33.9]} 19...
Qb6 {[%clk 0:03:10]} 20. g4 {[%clk 0:02:29.4]} 20... Rxc3 {[%clk 0:03:01.2]} 21.
Qxc3 {[%clk 0:02:29.4]} 21... Nxe4 {[%clk 0:03:02]} 22. Qxg7+ {[%clk 0:02:05.8]}
22... Kxg7 {[%clk 0:03:01.9]} 23. fxe4 {[%clk 0:02:06.8]} 23... Rb8 {[%clk
0:03:01.5]} 24. b3 {[%clk 0:02:06.4]} 24... Qa5 {[%clk 0:03:02.2]} 25. Kb2
{[%clk 0:02:05.7]} 25... Qe5+ {[%clk 0:03:00.3]} 0-1

[Event "*** Titled Tuesday Blitz"]
[Site "Chess.com"]
[Date "2018.06.05"]
[Round "1"]
[White "kleinebeer98"]
[Black "chesstatour"]
[Result "1-0"]
[WhiteElo "2452"]
[BlackElo "2049"]
[TimeControl "180+2"]
[EndTime "13:03:23 PDT"]
[Termination "kleinebeer98 won by resignation"]

1. e4 {[%clk 0:03:01.9]} 1... c6 {[%clk 0:03:00.7]} 2. d4 {[%clk 0:03:01.3]}
2... d5 {[%clk 0:03:02.3]} 3. f3 {[%clk 0:03:03.2]} 3... dxe4 {[%clk 0:03:02.8]}
4. fxe4 {[%clk 0:03:05.1]} 4... e5 {[%clk 0:03:04.4]} 5. Nf3 {[%clk 0:03:05.1]}
5... Bg4 {[%clk 0:02:59.3]} 6. Bc4 {[%clk 0:03:06.3]} 6... Nd7 {[%clk
0:03:00.2]} 7. c3 {[%clk 0:03:07.6]} 7... Bd6 {[%clk 0:02:54.9]} 8. Qb3 {[%clk
0:03:04.3]} 8... Bxf3 {[%clk 0:02:45]} 9. Bxf7+ {[%clk 0:03:01.4]} 9... Kf8
{[%clk 0:02:44.5]} 10. O-O {[%clk 0:02:51.2]} 10... Ngf6 {[%clk 0:02:35.8]} 11.
Rxf3 {[%clk 0:02:49.8]} 11... Qe7 {[%clk 0:02:34.4]} 12. Be6 {[%clk 0:02:38.1]}
12... Re8 {[%clk 0:02:12.3]} 13. Bxd7 {[%clk 0:02:18]} 13... Qxd7 {[%clk
0:02:11.1]} 14. Bg5 {[%clk 0:02:19.5]} 14... Qe7 {[%clk 0:01:37.4]} 15. Rxf6+
{[%clk 0:02:16.5]} 1-0

[Event "*** Titled Tuesday Blitz"]
[Site "Chess.com"]
[Date "2018.06.05"]
[Round "1"]
[White "maziarbagheri"]
[Black "albi1999"]
[Result "1-0"]
[WhiteElo "2271"]
[BlackElo "2552"]
[TimeControl "180+2"]
[EndTime "13:03:34 PDT"]
[Termination "maziarbagheri won by resignation"]

1. Nf3 {[%clk 0:03:01.9]} 1... d5 {[%clk 0:03:00.8]} 2. d4 {[%clk 0:03:00.2]}
2... Nf6 {[%clk 0:03:01.5]} 3. c4 {[%clk 0:02:59.6]} 3... e6 {[%clk 0:03:02.8]}
4. Nc3 {[%clk 0:02:57.8]} 4... c5 {[%clk 0:02:56.6]} 5. cxd5 {[%clk 0:02:57.4]}
5... Nxd5 {[%clk 0:02:58.5]} 6. e4 {[%clk 0:02:56.2]} 6... Nxc3 {[%clk
0:02:59.6]} 7. bxc3 {[%clk 0:02:58.1]} 7... cxd4 {[%clk 0:03:01.5]} 8. cxd4
{[%clk 0:02:59]} 8... Bb4+ {[%clk 0:03:03.1]} 9. Bd2 {[%clk 0:02:59.5]} 9...
Bxd2+ {[%clk 0:03:04.7]} 10. Qxd2 {[%clk 0:03:01.4]} 10... O-O {[%clk
0:03:06.1]} 11. Bc4 {[%clk 0:02:58.1]} 11... Nd7 {[%clk 0:03:07]} 12. O-O {[%clk
0:02:53.4]} 12... b6 {[%clk 0:03:07.5]} 13. Rfd1 {[%clk 0:02:49.7]} 13... Bb7
{[%clk 0:03:08.4]} 14. d5 {[%clk 0:02:50.5]} 14... Nc5 {[%clk 0:03:08.8]} 15.
Qf4 {[%clk 0:02:46.8]} 15... exd5 {[%clk 0:03:05]} 16. Bxd5 {[%clk 0:02:42.8]}
16... Qe7 {[%clk 0:03:04.4]} 17. Nd4 {[%clk 0:02:26.4]} 17... Bxd5 {[%clk
0:02:50.7]} 18. exd5 {[%clk 0:02:26.5]} 18... Qd7 {[%clk 0:02:38.3]} 19. Nf5
{[%clk 0:02:21]} 19... g6 {[%clk 0:02:26.7]} 20. Nh6+ {[%clk 0:02:11.7]} 20...
Kg7 {[%clk 0:02:27.2]} 21. Ng4 {[%clk 0:02:12.6]} 21... h5 {[%clk 0:02:23.6]}
22. Qh6+ {[%clk 0:02:03]} 1-0

[Event "*** Titled Tuesday Blitz"]
[Site "Chess.com"]
[Date "2018.06.05"]
[Round "1"]
[White "VovenRogel"]
[Black "Fianchettoed-Tower"]
[Result "1-0"]
[WhiteElo "2638"]
[BlackElo "2321"]
[TimeControl "180+2"]
[EndTime "13:03:50 PDT"]
[Termination "VovenRogel won by resignation"]

1. d4 {[%clk 0:02:59.5]} 1... d5 {[%clk 0:02:59.8]} 2. c4 {[%clk 0:03:00.2]}
2... c6 {[%clk 0:03:01.1]} 3. Nf3 {[%clk 0:03:00.5]} 3... Nf6 {[%clk 0:03:02.4]}
4. e3 {[%clk 0:03:01.3]} 4... Bg4 {[%clk 0:03:01.5]} 5. h3 {[%clk 0:03:01.4]}
5... Bh5 {[%clk 0:03:02.2]} 6. Nc3 {[%clk 0:03:01.8]} 6... e6 {[%clk 0:03:03.2]}
7. g4 {[%clk 0:03:02.7]} 7... Bg6 {[%clk 0:03:04.7]} 8. Ne5 {[%clk 0:03:04.2]}
8... Nbd7 {[%clk 0:03:06.1]} 9. Nxg6 {[%clk 0:03:04.7]} 9... hxg6 {[%clk
0:03:07]} 10. Qe2 {[%clk 0:03:05.7]} 10... Qc7 {[%clk 0:03:00.1]} 11. Bg2 {[%clk
0:03:06.3]} 11... Bb4 {[%clk 0:02:58.4]} 12. Bd2 {[%clk 0:03:07.3]} 12... g5
{[%clk 0:02:57]} 13. O-O-O {[%clk 0:03:07.5]} 13... O-O-O {[%clk 0:02:56.9]} 14.
Kb1 {[%clk 0:03:08.4]} 14... Bxc3 {[%clk 0:02:51.1]} 15. Bxc3 {[%clk 0:03:08.8]}
15... Nf8 {[%clk 0:02:50]} 16. h4 {[%clk 0:02:51]} 16... gxh4 {[%clk 0:02:40]}
17. g5 {[%clk 0:02:52.1]} 17... Ne4 {[%clk 0:02:04.4]} 18. Bxe4 {[%clk
0:02:52.4]} 18... dxe4 {[%clk 0:02:06.3]} 19. Qg4 {[%clk 0:02:54]} 19... Ng6
{[%clk 0:02:07]} 20. Qxe4 {[%clk 0:02:55]} 20... h3 {[%clk 0:02:04.9]} 21. d5
{[%clk 0:02:52.5]} 21... exd5 {[%clk 0:02:02.8]} 22. cxd5 {[%clk 0:02:53.4]}
22... Rh4 {[%clk 0:02:01.8]} 23. Qf3 {[%clk 0:02:53.6]} 23... h2 {[%clk
0:01:57.9]} 24. Bxg7 {[%clk 0:02:47.5]} 24... Qd7 {[%clk 0:01:49.8]} 25. Bf6
{[%clk 0:02:43]} 25... Re8 {[%clk 0:01:41]} 26. dxc6 {[%clk 0:02:38.1]} 26...
Qxc6 {[%clk 0:01:42.9]} 27. Rc1 {[%clk 0:02:38.6]} 1-0

[Event "*** Titled Tuesday Blitz"]
[Site "Chess.com"]
[Date "2018.06.05"]
[Round "1"]
[White "Perecke"]
[Black "shrek4life02"]
[Result "0-1"]
[WhiteElo "1963"]
[BlackElo "2439"]
[TimeControl "180+2"]
[EndTime "13:03:58 PDT"]
[Termination "shrek4life02 won on time"]

1. e4 {[%clk 0:01:45]} 1... Nf6 {[%clk 0:03:01.8]} 2. Nc3 {[%clk 0:00:52.4]}
2... d6 {[%clk 0:03:02.4]} 3. d4 {[%clk 0:00:47.7]} 3... g6 {[%clk 0:03:03.4]}
4. Nf3 {[%clk 0:00:44.6]} 4... Bg7 {[%clk 0:03:04.1]} 5. Bf4 {[%clk 0:00:44.4]}
5... O-O {[%clk 0:03:05]} 6. Bc4 {[%clk 0:00:43.5]} 6... Nh5 {[%clk 0:03:06.2]}
7. Bg3 {[%clk 0:00:41.2]} 7... c6 {[%clk 0:03:07.6]} 8. O-O {[%clk 0:00:37.8]}
8... b5 {[%clk 0:03:08.7]} 9. Bb3 {[%clk 0:00:36.5]} 9... a5 {[%clk 0:03:10]}
10. a3 {[%clk 0:00:35.7]} 10... h6 {[%clk 0:03:07.9]} 11. d5 {[%clk 0:00:31.8]}
11... c5 {[%clk 0:03:08.1]} 12. Ba2 {[%clk 0:00:26.8]} 12... b4 {[%clk
0:03:08.3]} 13. axb4 {[%clk 0:00:25]} 13... axb4 {[%clk 0:03:09.9]} 14. Ne2
{[%clk 0:00:18.1]} 14... Bxb2 {[%clk 0:03:10.7]} 0-1

[Event "*** Titled Tuesday Blitz"]
[Site "Chess.com"]
[Date "2018.06.05"]
[Round "1"]
[White "pultineviciuspaulius"]
[Black "Albertu"]
[Result "0-1"]
[WhiteElo "2614"]
[BlackElo "2327"]
[TimeControl "180+2"]
[EndTime "13:04:01 PDT"]
[Termination "Albertu won by resignation"]

1. d3 {[%clk 0:02:44.7]} 1... e5 {[%clk 0:02:59.5]} 2. Nf3 {[%clk 0:02:43.9]}
2... Nc6 {[%clk 0:03:00.1]} 3. g3 {[%clk 0:02:45.6]} 3... Nf6 {[%clk 0:02:59.4]}
4. Bg2 {[%clk 0:02:47.1]} 4... d5 {[%clk 0:02:58.9]} 5. O-O {[%clk 0:02:39.8]}
5... Be7 {[%clk 0:02:58.7]} 6. Bg5 {[%clk 0:02:39.5]} 6... O-O {[%clk
0:02:58.8]} 7. Nc3 {[%clk 0:02:37.8]} 7... h6 {[%clk 0:02:58.5]} 8. Bxf6 {[%clk
0:02:36.9]} 8... Bxf6 {[%clk 0:03:00.4]} 9. Nd2 {[%clk 0:02:38.4]} 9... Be6
{[%clk 0:03:00]} 10. e4 {[%clk 0:02:39]} 10... d4 {[%clk 0:03:00.5]} 11. Nd5
{[%clk 0:02:40.2]} 11... Be7 {[%clk 0:02:57.3]} 12. Re1 {[%clk 0:02:39.3]} 12...
Nb4 {[%clk 0:02:52.9]} 13. Nxe7+ {[%clk 0:02:35.3]} 13... Qxe7 {[%clk
0:02:53.3]} 14. Nf3 {[%clk 0:02:34.8]} 14... Qd6 {[%clk 0:02:40.6]} 15. Qd2
{[%clk 0:02:33.7]} 15... Na6 {[%clk 0:02:40.6]} 16. a3 {[%clk 0:02:30.8]} 16...
c5 {[%clk 0:02:41.1]} 17. Reb1 {[%clk 0:02:27.6]} 17... b5 {[%clk 0:02:39.2]}
18. Nh4 {[%clk 0:02:18.6]} 18... Rab8 {[%clk 0:02:26.2]} 19. Nf5 {[%clk
0:02:15.5]} 19... Qd7 {[%clk 0:02:27.1]} 20. Qa5 {[%clk 0:02:06.7]} 20... Rb6
{[%clk 0:02:20.9]} 21. b4 {[%clk 0:02:07.2]} 21... Rfb8 {[%clk 0:02:11.9]} 22.
bxc5 {[%clk 0:02:06.4]} 22... Nxc5 {[%clk 0:02:13.8]} 23. Qxb5 {[%clk
0:02:01.6]} 23... Rxb5 {[%clk 0:02:10.3]} 24. Re1 {[%clk 0:02:01.2]} 24... Bxf5
{[%clk 0:02:07.9]} 25. exf5 {[%clk 0:02:03.1]} 25... Qxf5 {[%clk 0:02:09.3]} 26.
h4 {[%clk 0:02:03.9]} 26... Rb2 {[%clk 0:02:09.2]} 27. Rac1 {[%clk 0:02:04.4]}
27... Nxd3 {[%clk 0:02:03.2]} 0-1

[Event "*** Titled Tuesday Blitz"]
[Site "Chess.com"]
[Date "2018.06.05"]
[Round "1"]
[White "Quiet_Desperation"]
[Black "Beca95"]
[Result "0-1"]
[WhiteElo "2399"]
[BlackElo "2774"]
[TimeControl "180+2"]
[EndTime "13:04:06 PDT"]
[Termination "Beca95 won by resignation"]

1. e4 {[%clk 0:03:00.6]} 1... c6 {[%clk 0:02:20.6]} 2. Nc3 {[%clk 0:02:29.6]}
2... d5 {[%clk 0:02:19.3]} 3. Nf3 {[%clk 0:02:30.5]} 3... dxe4 {[%clk
0:02:20.4]} 4. Nxe4 {[%clk 0:02:31.6]} 4... Nf6 {[%clk 0:02:21.9]} 5. Nxf6+
{[%clk 0:02:32.1]} 5... exf6 {[%clk 0:02:23.8]} 6. d4 {[%clk 0:02:33]} 6... Bd6
{[%clk 0:02:24.7]} 7. Bd3 {[%clk 0:02:34]} 7... O-O {[%clk 0:02:25.8]} 8. O-O
{[%clk 0:02:35.1]} 8... Qc7 {[%clk 0:02:27.4]} 9. h3 {[%clk 0:02:35.7]} 9... Nd7
{[%clk 0:02:27.6]} 10. c4 {[%clk 0:02:31.7]} 10... Rd8 {[%clk 0:02:28.5]} 11.
Be3 {[%clk 0:02:32.4]} 11... Nf8 {[%clk 0:02:29.4]} 12. Rc1 {[%clk 0:02:32.6]}
12... Ng6 {[%clk 0:02:30.1]} 13. Qc2 {[%clk 0:02:21.7]} 13... Be6 {[%clk
0:02:28.2]} 14. Rfd1 {[%clk 0:02:10.6]} 14... Qd7 {[%clk 0:02:28.9]} 15. Bf1
{[%clk 0:02:09.4]} 15... Bf5 {[%clk 0:02:29.4]} 16. Qb3 {[%clk 0:02:05.1]} 16...
Bf4 {[%clk 0:02:12.5]} 17. d5 {[%clk 0:02:02.3]} 17... Bxe3 {[%clk 0:02:10.8]}
18. fxe3 {[%clk 0:01:59.2]} 18... c5 {[%clk 0:02:10.9]} 19. Bd3 {[%clk
0:01:49.4]} 19... Bxd3 {[%clk 0:02:11.6]} 20. Qxd3 {[%clk 0:01:50.2]} 20... Qd6
{[%clk 0:02:10.2]} 21. Rc2 {[%clk 0:01:38.1]} 21... Re8 {[%clk 0:02:10.4]} 22.
Re2 {[%clk 0:01:39.1]} 22... Re7 {[%clk 0:02:11.4]} 23. Rde1 {[%clk 0:01:40.2]}
23... Rae8 {[%clk 0:02:12.1]} 24. e4 {[%clk 0:01:40.4]} 24... Nf4 {[%clk
0:02:12.2]} 0-1

[Event "*** Titled Tuesday Blitz"]
[Site "Chess.com"]
[Date "2018.06.05"]
[Round "1"]
[White "kuli4ik"]
[Black "ezkybel"]
[Result "1-0"]
[WhiteElo "2686"]
[BlackElo "2350"]
[TimeControl "180+2"]
[EndTime "13:04:22 PDT"]
[Termination "kuli4ik won by resignation"]

1. d4 {[%clk 0:02:58.8]} 1... e6 {[%clk 0:02:53.6]} 2. e4 {[%clk 0:02:58.5]}
2... d5 {[%clk 0:02:53.9]} 3. exd5 {[%clk 0:03:00.4]} 3... exd5 {[%clk
0:02:55.1]} 4. Nf3 {[%clk 0:03:02.1]} 4... Bd6 {[%clk 0:02:56.4]} 5. c4 {[%clk
0:03:03]} 5... dxc4 {[%clk 0:02:57.2]} 6. Bxc4 {[%clk 0:03:04.4]} 6... Nf6
{[%clk 0:02:58.8]} 7. O-O {[%clk 0:03:05.8]} 7... O-O {[%clk 0:02:59.6]} 8. Nc3
{[%clk 0:03:07.2]} 8... Bg4 {[%clk 0:03:00.6]} 9. h3 {[%clk 0:03:07.7]} 9... Bh5
{[%clk 0:02:59.9]} 10. g4 {[%clk 0:03:08.7]} 10... Bg6 {[%clk 0:03:00.1]} 11.
Ne5 {[%clk 0:03:10.1]} 11... Nc6 {[%clk 0:02:56.5]} 12. f4 {[%clk 0:03:09.9]}
12... Bxe5 {[%clk 0:02:29.7]} 13. dxe5 {[%clk 0:03:11.8]} 13... Ne4 {[%clk
0:02:28.4]} 14. Qxd8 {[%clk 0:03:10.6]} 14... Raxd8 {[%clk 0:02:27.8]} 15. f5
{[%clk 0:03:11.7]} 15... Nxc3 {[%clk 0:02:28.7]} 16. bxc3 {[%clk 0:03:11.3]}
16... Nxe5 {[%clk 0:02:27.8]} 17. Bb3 {[%clk 0:03:12.2]} 17... Rd3 {[%clk
0:02:18.9]} 18. fxg6 {[%clk 0:03:12.8]} 18... hxg6 {[%clk 0:02:17.9]} 19. Bf4
{[%clk 0:03:12.3]} 19... Nf3+ {[%clk 0:02:05]} 20. Kf2 {[%clk 0:03:12.5]} 20...
Nh4 {[%clk 0:01:53.9]} 21. Ke2 {[%clk 0:02:34.1]} 21... Rxh3 {[%clk 0:01:49.6]}
22. Rh1 {[%clk 0:02:30.5]} 22... Ng2 {[%clk 0:01:47.9]} 23. Bd2 {[%clk
0:02:27.7]} 23... Rg3 {[%clk 0:01:42]} 24. Kf2 {[%clk 0:02:22.2]} 24... Rxg4
{[%clk 0:01:29.1]} 25. Kf3 {[%clk 0:02:21.2]} 25... Rh4 {[%clk 0:01:12.6]} 26.
Kxg2 {[%clk 0:02:21.2]} 1-0